Workbook

Sheet Инструкция

Sheet Титульный
D2: Версия 2.2.1
F3: 2019
B4: ="Информация для расчета ставок платы за технологическое присоединение к электрическим сетям на " & D10 & " год (фактические данные предоставляются за период " & D10-4 & "-" & D10-2 & " гг.)" -> Информация для расчета ставок платы за технологическое присоединение к электрическим сетям на 2022 год (фактические данные предоставляются за период 2018-2020 гг.) | F4: 2020
F5: 2021
F6: 2022
B8: Наименование организации | D8: ООО "Газпром энерго"
B10: Период регулирования | D10: 2022
B12: Ответственный за заполнение формы | D12: Каримова Лидия Сергеевна
B14: Телефон исполнителя | D14: 8 (3462) 75 19 13
B16: Электонная почта | D16: L.Karimova@suf.energo.gazprom.ru
B18: Дата заполнения | D18: 2021-09-23

Sheet Ставка 1.
B1: ="Расходы на выполнение мероприятий по технологическому присоединению, предусмотренным подпунктами 'а' и 'в' пункта 16 Методических указаний, за " & Титульный!D10-4 & "-" & Титульный!D10-2 & " гг." -> Расходы на выполнение мероприятий по технологическому присоединению, предусмотренным подпунктами 'а' и 'в' пункта 16 Методических указаний, за 2018-2020 гг.
B5: N п/п | C5: Наименование мероприятий | D5: Информация для расчета стандартизированной тарифной ставки С1 | G5: Год | H5: Расходы на одно присоединение (руб. на одно ТП), (без НДС)
D6: Расходы по каждому мероприятию (руб.), (без НДС) | E6: Количество технологических присоединений (шт.) | F6: Объем максимальной мощности (кВт)
B7: 1 | C7: 2 | D7: 3 | E7: 4 | F7: 5 | G7: 6 | H7: 7
E8: =Титульный!D10-4 -> 2018
B9: 1 | C9: Подготовка и выдача сетевой организацией технических условий Заявителю, в том числе: | D9: =D10+D11 -> 20,151.82 | E9: =E10+E11 -> 26.00 | F9: =F10+F11 -> 7,285.20 | G9: =Титульный!$D$10-4 -> 2018 | H9: =IFERROR(D9/E9,"Заполните все столбцы") -> 775.07
B10: 1.1 | C10: - до 15 кВт (включительно) | D10: 2,909.03 | E10: 15.00 | F10: 191.00 | G10: =Титульный!$D$10-4 -> 2018 | H10: =IFERROR(D10/E10,"Заполните все столбцы") -> 193.9353333
B11: 1.2 | C11: - свыше 16 кВт | D11: 17,242.79 | E11: 11.00 | F11: 7,094.20 | G11: =Титульный!$D$10-4 -> 2018 | H11: 1567.526364
B12: 2 | C12: Проверка сетевой организацией выполнения технических условий Заявителем | D12: =D13+D16 -> 74,915.05 | E12: =E13+E16 -> 26.00 | F12: 7,285.20 | G12: =Титульный!$D$10-4 -> 2018 | H12: 2881.348077
B13: 2.1 | C13: Выдача сетевой организацией акта об осуществлении технологического присоединения Заявителям, указанным в абзаце восьмом пункта 24 Методических указаний по определению размера платы за технологическое присоединение к электрическим сетям | D13: =D14+D15 -> 26,913.71 | E13: =E14+E15 -> 17.00 | F13: 383.00 | G13: =Титульный!$D$10-4 -> 2018 | H13: 1583.159198
B14: 2.1.1 | C14: - до 15 кВт (включительно) | D14: =9812.7/15*14 -> 9,158.52 | E14: 14.00 | F14: 183.00 | G14: =Титульный!$D$10-4 -> 2018 | H14: 654.18
B15: 2.1.2 | C15: - от 16 кВт до 150 кВт | D15: =65102.35/11*E15 -> 17,755.19 | E15: 3.00 | F15: 200.00 | G15: =Титульный!$D$10-4 -> 2018 | H15: 5918.395455
B16: 2.2 | C16: Проверка сетевой организацией выполнения технических условий Заявителями, указанными в абзаце девятом пункта 24 Методических указаний по определению размера платы за технологическое присоединение к электрическим сетям | D16: =D17 -> 48,001.34 | E16: =E17 -> 9.00 | F16: 6,902.20 | G16: =Титульный!$D$10-4 -> 2018 | H16: 5333.482626
B17: 2.2.1 | C17: - свыше 150 кВт | D17: =65102.35/11*8+9812.7/15*1 -> 48,001.34 | E17: =6+1+2 -> 9.00 | F17: =8+205+6689.2 -> 6,902.20 | G17: =Титульный!$D$10-4 -> 2018 | H17: 5333.482626
E18: =Титульный!$D$10-3 -> 2019
B19: 1. | C19: Подготовка и выдача сетевой организацией технических условий Заявителю, в том числе: | D19: =D20+D21 -> 53,083.97 | E19: =E20+E21 -> 19.00 | F19: =F20+F21 -> 2,467.00 | G19: =Титульный!$D$10-3 -> 2019 | H19: =IFERROR(D19/E19,"Заполните все столбцы") -> 2793.893158
B20: 1.1 | C20: - до 15 кВт (включительно) | D20: 1,059.31 | E20: 11.00 | F20: 120.00 | G20: =Титульный!$D$10-3 -> 2019 | H20: =IFERROR(D20/E20,"Заполните все столбцы") -> 96.30090909
B21: 1.2 | C21: - свыше 16 кВт | D21: 52,024.66 | E21: 8.00 | F21: 2,347.00 | G21: =Титульный!$D$10-3 -> 2019 | H21: 6503.0825
B22: 2. | C22: Проверка сетевой организацией выполнения технических условий Заявителем | D22: =D23+D26 -> 17,205.10 | E22: =E23+E26 -> 19.00 | F22: =F23+F26 -> 2,467.00 | G22: =Титульный!$D$10-3 -> 2019 | H22: 905.5315789
B23: 2.1 | C23: Выдача сетевой организацией акта об осуществлении технологического присоединения Заявителям, указанным в абзаце восьмом пункта 24 Методических указаний по определению размера платы за технологическое присоединение к электрическим сетям | D23: =D24+D25 -> 2,150.64 | E23: =E24+E25 -> 11.00 | F23: =F24+F25 -> 155.00 | G23: =Титульный!$D$10-3 -> 2019 | H23: 195.5125
B24: 2.1.1 | C24: - до 15 кВт (включительно) | D24: 0.00 | E24: 10.00 | F24: 105.00 | G24: =Титульный!$D$10-3 -> 2019 | H24: 0
B25: 2.1.2 | C25: - от 16 кВт до 150 кВт | D25: =17205.1/8*E25 -> 2,150.64 | E25: 1.00 | F25: 50.00 | G25: =Титульный!$D$10-3 -> 2019 | H25: 2150.6375
B26: 2.2 | C26: Проверка сетевой организацией выполнения технических условий Заявителями, указанными в абзаце девятом пункта 24 Методических указаний по определению размера платы за технологическое присоединение к электрическим сетям | D26: =D27 -> 15,054.46 | E26: =E27 -> 8.00 | F26: =F27 -> 2,312.00 | G26: =Титульный!$D$10-3 -> 2019 | H26: 1881.807812
B27: 2.2.1 | C27: - свыше 150 кВт | D27: =17205.1/8*7 -> 15,054.46 | E27: =1+1+6 -> 8.00 | F27: =1600+15+697 -> 2,312.00 | G27: =Титульный!$D$10-3 -> 2019 | H27: 1881.807812
E28: =Титульный!$D$10-2 -> 2020
B29: 1. | C29: Подготовка и выдача сетевой организацией технических условий Заявителю, в том числе: | D29: =D30+D31 -> 116,030.75 | E29: =E30+E31 -> 18.00 | F29: =F30+F31 -> 5,474.06 | G29: =Титульный!$D$10-2 -> 2020 | H29: =IFERROR(D29/E29,"Заполните все столбцы") -> 6446.152778
B30: 1.1 | C30: - до 15 кВт (включительно) | D30: 4,486.38 | E30: 6.00 | F30: 68.50 | G30: =Титульный!$D$10-2 -> 2020 | H30: =IFERROR(D30/E30,"Заполните все столбцы") -> 747.73
B31: 1.2 | C31: - свыше 16 кВт | D31: 111,544.37 | E31: 12.00 | F31: 5,405.56 | G31: =Титульный!$D$10-2 -> 2020 | H31: 9295.364167
B32: 2. | C32: Проверка сетевой организацией выполнения технических условий Заявителем | D32: =D33+D36 -> 251,730.08 | E32: =E33+E36 -> 18.00 | F32: =F33+F36 -> 5,474.06 | G32: =Титульный!$D$10-2 -> 2020 | H32: 13985.00444
B33: 2.1 | C33: Выдача сетевой организацией акта об осуществлении технологического присоединения Заявителям, указанным в абзаце восьмом пункта 24 Методических указаний по определению размера платы за технологическое присоединение к электрическим сетям | D33: =D34+D35 -> 89,928.43 | E33: =E34+E35 -> 10.00 | F33: =F34+F35 -> 283.50 | G33: =Титульный!$D$10-2 -> 2020 | H33: 8992.842667
B34: 2.1.1 | C34: - до 15 кВт (включительно) | D34: 9,027.60 | E34: 6.00 | F34: 68.50 | G34: =Титульный!$D$10-2 -> 2020 | H34: 1504.6
B35: 2.1.2 | C35: - от 16 кВт до 150 кВт | D35: =242702.48/12*E35 -> 80,900.83 | E35: 4.00 | F35: 215.00 | G35: =Титульный!$D$10-2 -> 2020 | H35: 20225.20667
B36: 2.2 | C36: Проверка сетевой организацией выполнения технических условий Заявителями, указанными в абзаце девятом пункта 24 Методических указаний по определению размера платы за технологическое присоединение к электрическим сетям | D36: =D37 -> 161,801.65 | E36: =E37 -> 8.00 | F36: =F37 -> 5,190.56 | G36: =Титульный!$D$10-2 -> 2020 | H36: 20225.20667
B37: 2.2.1 | C37: - свыше 150 кВт | D37: =242702.48/12*E37 -> 161,801.65 | E37: =3+5 -> 8.00 | F37: =4616+574.56 -> 5,190.56 | G37: =Титульный!$D$10-2 -> 2020 | H37: 20225.20667

Sheet Ставка 2. (ВЛ)
C2: Расходы на строительство введенных в эксплуатацию объектов электросетевого хозяйства для целей технологического присоединения и для целей реализации иных мероприятий инвестиционной программы территориальной сетевой организации
C6: ДЛЯ НАСЕЛЕННЫХ ПУНКТОВ ВСЕХ ТЕРРИТОРИЙ
C8: N п/п | D8: Технический код ставки | E8: Обозначение ставки | F8: Наименование ставки | G8: Объект электросетевого хозяйства | H8: Территория | I8: Опоры | J8: Опоры (за исключением) Технический столбец | K8: Изоляция | L8: Материал провода | M8: Сечение | N8: Количество цепей | O8: Напряжение | P8: Год ввода объекта | Q8: Протяженность линий электропередачи, км | R8: Присоединенная максимальная мощность, кВт (указывается только до 670кВт, если больше не указывается) | S8: Общие расходы на строительство объекта, руб. (без НДС) | T8: Расходы на строительство единицы ВЛ, руб./км | U8: Наименование папки | V8: Источник финансирования
C9: 1 | D9: =C$9+1 -> 2 | E9: =D$9+1 -> 3 | F9: 4 | G9: 5 | H9: 6 | I9: 7 | J9: Технический | K9: =I$9+1 -> 8 | L9: =K$9+1 -> 9 | M9: 10 | N9: 11 | O9: 12 | P9: 13 | Q9: 14 | R9: 15 | S9: 16 | T9: 17 | U9: 18 | V9: 19
C10: 2. | M10: Строительство воздушных линий
B11: X | C11: =ROW($C11)-12 -> -2.1 | D11: =IF(OR($H11="",$I11="",$K11="",$L11="",$M11="",$N11="",$O11=""),"Заполните все столбцы",LEFT($H11,2)&"."&"2."&LEFT($I11,1)&"."&LEFT($K11,1)&"."&LEFT($L11,1)&"."&LEFT($M11,1)&"."&LEFT($N11,1)&"."&LEFT($J11,1)) -> Заполните все столбцы | E11: =IFERROR("С "&(MID($D11,4,LEN($D11)))&" "&(RIGHT($H11,LEN($H11)-3))&","&(RIGHT($O11,LEN($O11)-2)),"Заполните все столбцы") -> Заполните все столбцы | F11: =IFERROR(LOWER("воздушные линии на "&VLOOKUP($I11,'1.1Назв. объ. эл. сетевого хоз.'!$A$2:$B$24,2,0)&" "&VLOOKUP($K11,'1.1Назв. объ. эл. сетевого хоз.'!$A$2:$B$24,2,0)&" "&VLOOKUP($L11,'1.1Назв. объ. эл. сетевого хоз.'!$A$2:$B$24,2,0)&" проводом "&"сечением "&VLOOKUP($M11,'1.1Назв. объ. эл. сетевого хоз.'!$A$2:$B$24,2,0)&" "&VLOOKUP($N11,'1.1Назв. объ. эл. сетевого хоз.'!$A$2:$B$24,2,0)),"Заполните все столбцы") -> Заполните все столбцы | G11: Название объекта | T11: =IF(OR($S11="",$Q11=""),"Заполните все столбцы",IF(AND(IF(AND(S11<>0,Q11<>0),S11/Q11,0)>=1000000,IF(AND(S11<>0,Q11<>0),S11/Q11,0)<=20000000),IF(AND(S11<>0,Q11<>0),S11/Q11,0),"Значение расходов вне возможного диапазона")) -> Заполните все столбцы
B12: TAG | G12: Добавить строки
B13: TAG | G13: Добавить строки

Sheet Наименования ставок (hidden)
C2: 2. воздушные линии | L2: 3. кабельные линии | T2: 4. пункты секционирования (реклоузеры, распределительные пункты, переключательные пункты) | Z2: 5. трансформаторные подстанции (ТП), за исключением распределительных трансформаторных подстанций (РТП), с уровнем напряжения до 35 кВ | AF2: 6. распределительные трансформаторные подстанции (РТП) с уровнем напряжения до 35 кВ | AK2: 7. подстанции уровнем напряжения 35 кВ и выше | AP2: 8. обеспечение средствами коммерческого учета электрической энергии (мощности)
A3: Ст | C3: территория | D3: опоры | E3: изоляция | F3: материал | G3: сечение | H3: количество цепей | I3: напряжение | L3: территория | M3: способ прокладки | N3: вид жилы | O3: изоляция | P3: сечение | Q3: количество кабелей | R3: напряжение | T3: территория | U3: техническое исполнение | V3: номинальный ток | W3: Количество ячеек | X3: напряжение | Z3: территория | AA3: количество трансформаторов | AB3: мощность трансформаторов | AC3: тип исполнения | AD3: напряжение | AF3: территория | AG3: количество трансформаторов | AH3: мощность трансформаторов | AI3: напряжение | AK3: территория | AL3: количество трансформаторов | AM3: мощность трансформаторов | AN3: напряжение | AP3: территория | AQ3: количество фаз | AR3: способ подключения | AS3: напряжение
A4: 1 | C4: Городское | D4: деревянных | E4: изолированым | F4: медным | G4: до 50 квадратных мм включительно | H4: 1. Одноцепные | I4: 1. 0,4 кВ и ниже | L4: город | M4: траншея | N4: одножильный | O4: резиновая или пластмассовая | P4: до 50 квадратных мм включительно | Q4: 1 | R4: 0,4 кВ и ниже | T4: город | U4: реклоузер | V4: до 100 А | W4: от 5 до 10 включительно | X4: 0,4 кВ и ниже | Z4: город | AA4: один | AB4: до 25 кВА включительно | AC4: столбового/мачтового | AD4: 6/0,4 кВ | AF4: город | AG4: один | AH4: до 25 кВА включительно | AI4: 6(10)/0,4 кВ | AK4: город | AL4: один | AM4: до 6,3 МВА включительно | AN4: 35/6(10) кВ | AP4: город | AQ4: однофазные | AR4: прямого включения | AS4: 0,4 кВ и ниже
A5: 2 | C5: Не городское | D5: металлических | E5: неизолированным | F5: стальным | G5: от 50 до 100 квадратных мм включительно | H5: 2. Двухцепные | I5: 2. 1 - 20 кВ | L5: не город | M5: блоки | N5: многожильный | O5: бумажная | P5: от 50 до 100 квадратных мм включительно | Q5: 2 | R5: 1 - 10 кВ | T5: не город | U5: линейные разъединители | V5: от 100 до 250 А включительно | W5: от 10 до 15 включительно | X5: 1 - 20 кВ | Z5: не город | AA5: два | AB5: от 25 до 100 кВА включительно | AC5: шкафного или киоскового | AD5: 10/0,4 кВ | AF5: не город | AG5: два | AH5: от 25 до 100 кВА включительно | AI5: 20/0,4 кВ | AK5: не город | AL5: два | AM5: от 6,3 МВА до 10 МВА включительно | AN5: 35/0,4 кВ | AP5: не город | AQ5: трехфазные | AR5: полукосвенного включения | AS5: 1 - 20 кВ
A6: 3 | D6: металлических, за исключением многогранных | F6: сталеалюминиевым | G6: от 100 до 200 квадратных мм включительно | I6: 3. 27,5 - 60 кВ | M6: каналы | P6: от 100 до 200 квадратных мм включительно | Q6: 3 | R6: 15 - 20 кВ | U6: выключатели нагрузки, устанавливаемые вне трансформаторных подстанций и распределительных и переключательных пунктов, | V6: от 250 до 500 А включительно | W6: свыше 15 | X6: 35 кВ | AB6: от 100 до 250 кВА включительно | AC6: блочного | AD6: 20/0,4 кВ | AH6: от 100 до 250 кВА включительно | AM6: от 10 МВА до 16 МВА включительно | AN6: 110/35 кВ | AR6: косвенного включения | AS6: 35 кВ
A7: 4 | D7: металлических многогранных | F7: алюминиевым | G7: от 200 до 500 квадратных мм включительно | I7: 4. 110 кВ и выше | M7: туннели и коллекторы | P7: от 200 до 250 квадратных мм включительно | Q7: 4 | R7: 27,5 - 60 кВ | U7: распределительные пункты (РП), за исключением комплектных распределительных устройств наружной установки (КРН, КРУН), | V7: от 500 до 1000 А включительно | X7: 110 кВ и выше | AB7: от 250 до 400 кВА включительно | AD7: 6/10 (10/6) кВ | AH7: от 250 до 400 кВА включительно | AM7: от 16 МВА до 25 МВА включительно | AN7: 110/6(10) кВ | AS7: 110 кВ и выше
A8: 5 | D8: железобетонных | G8: от 500 до 800 квадратных мм включительно | M8: галереи и эстакады | P8: от 250 до 300 квадратных мм включительно | Q8: более 4 | R8: 110 кВ и выше | U8: комплектные распределительные устройства наружной установки (КРН, КРУН) | V8: свыше 1000 А | AB8: от 400 до 1000 кВА включительно | AD8: 10/20 (20/10) кВ | AH8: от 400 до 1000 кВА включительно | AM8: от 25 МВА до 32 МВА включительно | AN8: 110/35/6(10) кВ
A9: 6 | G9: свыше 800 квадратных мм | M9: метод горизонтального наклонного бурения | P9: от 300 до 400 квадратных мм включительно | U9: переключательные пункты | AB9: от 1000 кВА до 1250 кВА | AD9: 6/20 (20/6) кВ | AH9: от 1000 кВА до 1250 кВА | AM9: от 32 МВА до 40 МВА включительно
P10: от 400 до 500 квадратных мм включительно | AB10: от 1250 кВА до 1600 кВА включительно | AH10: от 1250 кВА до 1600 кВА включительно | AM10: от 40 МВА до 63 МВА включительно
C11: территория | D11: опоры | E11: изоляция | F11: материал | G11: сечение | H11: количество цепей | I11: напряжение | P11: от 500 до 800 квадратных мм включительно | AB11: от 1600 кВА до 2000 кВА включительно | AH11: от 1600 кВА до 2000 кВА включительно | AM11: от 63 МВА до 80 МВА включительно
C12: город | D12: деревянные | E12: изолированый | F12: медный | G12: до 50 квадратных мм включительно | H12: одноцепные | I12: 0,4 кВ и ниже | P12: свыше 800 квадратных мм | AB12: от 2000 кВА до 2500 кВА включительно | AH12: от 2000 кВА до 2500 кВА включительно | AM12: от 80 МВА до 100 МВА включительно
C13: не город | D13: металлические | E13: неизолированный | F13: стальной | G13: от 50 до 100 квадратных мм включительно | H13: двухцепные | I13: 1 - 20 кВ | AB13: от 2500 кВА до 3150 кВА включительно | AH13: от 2500 кВА до 3150 кВА включительно | AM13: свыше 100 МВА
D14: металлические, за исключением многогранных | F14: сталеалюминиевый | G14: от 100 до 200 квадратных мм включительно | I14: 27,5 - 60 кВ | AB14: от 3150 кВА до 4000 кВА включительно | AH14: от 3150 кВА до 4000 кВА включительно
D15: металлические многогранные | F15: алюминиевый | G15: от 200 до 500 квадратных мм включительно | I15: 110 кВ и выше | AB15: свыше 4000 кВА | AH15: свыше 4000 кВА
D16: железобетонные | G16: от 500 до 800 квадратных мм включительно
G17: свыше 800 квадратных мм

Sheet Ставка 3. (КЛ)
C2: Расходы на строительство введенных в эксплуатацию объектов электросетевого хозяйства для целей технологического присоединения и для целей реализации иных мероприятий инвестиционной программы территориальной сетевой организации
C6: ДЛЯ НАСЕЛЕННЫХ ПУНКТОВ ВСЕХ ТЕРРИТОРИЙ
C8: N п/п | D8: Технический код ставки | E8: Обозначение ставки | F8: Наименование ставки | G8: Объект электросетевого хозяйства | H8: Территория | I8: Способ прокладки | J8: Вид жилы | K8: Изоляция | L8: Сечение | M8: Количество кабелей | N8: Напряжение | O8: Год ввода объекта | P8: Протяженность линий электропередачи, км | Q8: Присоединенная максимальная мощность, кВт (указывается только до 670кВт, если больше не указывается) | R8: Общие расходы на строительство объекта, руб. (без НДС) | S8: Расходы на строительство единицы КЛ, руб./км | T8: Наименование папки | U8: Источник финансирования
C9: 1 | D9: =C$9+1 -> 2 | E9: =D$9+1 -> 3 | F9: 4 | G9: 5 | H9: 6 | I9: 7 | J9: 8 | K9: 9 | L9: 10 | M9: 11 | N9: 12 | O9: 13 | P9: 14 | Q9: 15 | R9: 16 | S9: 17 | T9: 18 | U9: 19
C10: 3. | L10: Строительство кабельных линий
B11: X | C11: =ROW($C11)-12 -> -3.1 | D11: =IF(OR($H11="",$I11="",$J11="",$K11="",$L11="",$M11="",$N11=""),"Заполните все столбцы",LEFT($H11,2)&"."&"3."&LEFT($I11,1)&"."&LEFT($J11,1)&"."&LEFT($K11,1)&"."&LEFT($L11,1)&"."&LEFT($M11,1)) -> Заполните все столбцы | E11: =IFERROR("С "&(MID($D11,4,LEN($D11)))&" "&(RIGHT($H11,LEN($H11)-3))&","&(RIGHT($N11,LEN($N11)-2)),"Заполните все столбцы") -> Заполните все столбцы | F11: =IFERROR(LOWER("кабельные линии"&IF($I11="6) метод горизонтального наклонного бурения",VLOOKUP($I11,'1.1Назв. объ. эл. сетевого хоз.'!$D$2:$E$33,2,0)&" "&VLOOKUP($J11,'1.1Назв. объ. эл. сетевого хоз.'!$D$2:$E$33,2,0)&" c "&VLOOKUP($K11,'1.1Назв. объ. эл. сетевого хоз.'!$D$2:$E$33,2,0)&" изоляцией "&"сечением провода "&VLOOKUP($L11,'1.1Назв. объ. эл. сетевого хоз.'!$D$2:$E$33,2,0)&" "&IF($M11="5) более четырех","с количеством "&IF($I11="6) метод горизонтального наклонного бурения",VLOOKUP($M11,'1.1Назв. объ. эл. сетевого хоз.'!$D$2:$F$33,3,0),VLOOKUP($M11,'1.1Назв. объ. эл. сетевого хоз.'!$D$2:$E$33,2,0)),IF($I11="6) метод горизонтального наклонного бурения",VLOOKUP($M11,'1.1Назв. объ. эл. сетевого хоз.'!$D$2:$F$33,3,0),VLOOKUP($M11,'1.1Назв. объ. эл. сетевого хоз.'!$D$2:$E$33,2,0))),VLOOKUP($I11,'1.1Назв. объ. эл. сетевого хоз.'!$D$2:$E$33,2,0)&" "&VLOOKUP($J11,'1.1Назв. объ. эл. сетевого хоз.'!$D$2:$E$33,2,0)&" c "&VLOOKUP($K11,'1.1Назв. объ. эл. сетевого хоз.'!$D$2:$E$33,2,0)&" изоляцией "&"сечением провода "&VLOOKUP($L11,'1.1Назв. объ. эл. сетевого хоз.'!$D$2:$E$33,2,0)&" "&IF($M11="5) более четырех","с количеством "&IF($I11="6) метод горизонтального наклонного бурения",VLOOKUP($M11,'1.1Назв. объ. эл. сетевого хоз.'!$D$2:$F$33,3,0),VLOOKUP($M11,'1.1Назв. объ. эл. сетевого хоз.'!$D$2:$E$33,2,0)),IF($I11="6) метод горизонтального наклонного бурения",VLOOKUP($M11,'1.1Назв. объ. эл. сетевого хоз.'!$D$2:$F$33,3,0),VLOOKUP($M11,'1.1Назв. объ. эл. сетевого хоз.'!$D$2:$E$33,2,0)))&" "&VLOOKUP($I11,'1.1Назв. объ. эл. сетевого хоз.'!$D$2:$F$33,3,0))),"Заполните все столбцы") -> Заполните все столбцы | G11: Название объекта | S11: =IF(OR($R11="",$P11=""),"Заполните все столбцы",IF(AND(IF(AND(R11<>0,P11<>0),R11/P11,0)>=1000000,IF(AND(R11<>0,P11<>0),R11/P11,0)<=50000000),IF(AND(R11<>0,P11<>0),R11/P11,0),"Значение расходов вне возможного диапазона")) -> Заполните все столбцы
B12: TAG | G12: Добавить строки
B13: X | C13: =ROW($C13)-12 -> 3.1 | D13: =IF(OR($H13="",$I13="",$J13="",$K13="",$L13="",$M13="",$N13=""),"Заполните все столбцы",LEFT($H13,2)&"."&"3."&LEFT($I13,1)&"."&LEFT($J13,1)&"."&LEFT($K13,1)&"."&LEFT($L13,1)&"."&LEFT($M13,1)) -> II.3.1.1.1.1.1 | E13: =IFERROR("С "&(MID($D13,4,LEN($D13)))&" "&(RIGHT($H13,LEN($H13)-3))&","&(RIGHT($N13,LEN($N13)-2)),"Заполните все столбцы") -> С 3.1.1.1.1.1 Не город, 0,4 кВ и ниже | F13: =IFERROR(LOWER("кабельные линии"&IF($I13="6) метод горизонтального наклонного бурения",VLOOKUP($I13,'1.1Назв. объ. эл. сетевого хоз.'!$D$2:$E$33,2,0)&" "&VLOOKUP($J13,'1.1Назв. объ. эл. сетевого хоз.'!$D$2:$E$33,2,0)&" c "&VLOOKUP($K13,'1.1Назв. объ. эл. сетевого хоз.'!$D$2:$E$33,2,0)&" изоляцией "&"сечением провода "&VLOOKUP($L13,'1.1Назв. объ. эл. сетевого хоз.'!$D$2:$E$33,2,0)&" "&IF($M13="5) более четырех","с количеством "&IF($I13="6) метод горизонтального наклонного бурения",VLOOKUP($M13,'1.1Назв. объ. эл. сетевого хоз.'!$D$2:$F$33,3,0),VLOOKUP($M13,'1.1Назв. объ. эл. сетевого хоз.'!$D$2:$E$33,2,0)),IF($I13="6) метод горизонтального наклонного бурения",VLOOKUP($M13,'1.1Назв. объ. эл. сетевого хоз.'!$D$2:$F$33,3,0),VLOOKUP($M13,'1.1Назв. объ. эл. сетевого хоз.'!$D$2:$E$33,2,0))),VLOOKUP($I13,'1.1Назв. объ. эл. сетевого хоз.'!$D$2:$E$33,2,0)&" "&VLOOKUP($J13,'1.1Назв. объ. эл. сетевого хоз.'!$D$2:$E$33,2,0)&" c "&VLOOKUP($K13,'1.1Назв. объ. эл. сетевого хоз.'!$D$2:$E$33,2,0)&" изоляцией "&"сечением провода "&VLOOKUP($L13,'1.1Назв. объ. эл. сетевого хоз.'!$D$2:$E$33,2,0)&" "&IF($M13="5) более четырех","с количеством "&IF($I13="6) метод горизонтального наклонного бурения",VLOOKUP($M13,'1.1Назв. объ. эл. сетевого хоз.'!$D$2:$F$33,3,0),VLOOKUP($M13,'1.1Назв. объ. эл. сетевого хоз.'!$D$2:$E$33,2,0)),IF($I13="6) метод горизонтального наклонного бурения",VLOOKUP($M13,'1.1Назв. объ. эл. сетевого хоз.'!$D$2:$F$33,3,0),VLOOKUP($M13,'1.1Назв. объ. эл. сетевого хоз.'!$D$2:$E$33,2,0)))&" "&VLOOKUP($I13,'1.1Назв. объ. эл. сетевого хоз.'!$D$2:$F$33,3,0))),"Заполните все столбцы") -> кабельные линии в траншеях одножильные c резиновой или пластмассовой изоляцией сечением провода до 50 квадратных мм включительно с одним кабелем в траншее | G13: КЛ-0,4 кВ ф. "Вышка РТС" марки ВБбШвнг 4х4 мм2 | H13: II) Не город | I13: 1) траншея | J13: 1) одножильный | K13: 1) резиновая или пластмассовая | L13: 1) до 50 квадратных мм включительно | M13: 1) один | N13: 1) 0,4 кВ и ниже | O13: 2019 | P13: 0.11 | Q13: 8.00 | R13: 954,851.50 | S13: =IF(OR($R13="",$P13=""),"Заполните все столбцы",IF(AND(IF(AND(R13<>0,P13<>0),R13/P13,0)>=1000000,IF(AND(R13<>0,P13<>0),R13/P13,0)<=50000000),IF(AND(R13<>0,P13<>0),R13/P13,0),"Значение расходов вне возможного диапазона")) -> 8,680,468.18 | T13: 3.1.С3.2019 | U13: Технологическое присоединение
B14: TAG | G14: Добавить строки

Sheet Ставка 4.1.-4.3.
C2: Расходы на строительство введенных в эксплуатацию объектов электросетевого хозяйства для целей технологического присоединения и для целей реализации иных мероприятий инвестиционной программы территориальной сетевой организации
C6: ДЛЯ НАСЕЛЕННЫХ ПУНКТОВ ВСЕХ ТЕРРИТОРИЙ
C8: N п/п | D8: Технический код ставки | E8: Обозначение ставки | F8: Наименование ставки | G8: Объект электросетевого хозяйства | H8: Территория | I8: Техническое исполнение | J8: Номинальный ток | K8: Напряжение | L8: Год ввода объекта | M8: Количество пунктов секционирования, шт. | N8: Общая трансформаторная мощность, кВт | O8: Присоединенная максимальная мощность, кВт (указывается только до 670кВт, если больше не указывается) | P8: Общие расходы на строительство объекта, руб. (без НДС) | Q8: Расходы на строительство единицы, руб./шт. | R8: Наименование папки | S8: Источник финансирования
C9: 1 | D9: =C$9+1 -> 2 | E9: =D$9+1 -> 3 | F9: 4 | G9: 5 | H9: 6 | I9: 7 | J9: 8 | K9: 9 | L9: 10 | M9: 11 | N9: 12 | O9: 13 | P9: 14 | Q9: 15 | R9: 16 | S9: 17
C10: 4. | K10: Реклоузеры, линейные разъединители, выключатели нагрузки
B11: X | C11: =ROW($C11)-12 -> -4.1 | D11: =IF(OR($H11="",$I11="",$J11="",$K11=""),"Заполните все столбцы",LEFT($H11,2)&"."&"4."&LEFT($I11,1)&"."&LEFT($J11,1)) -> Заполните все столбцы | E11: =IFERROR("С "&(MID($D11,4,LEN($D11)))&" "&(RIGHT($H11,LEN($H11)-3))&","&(RIGHT($K11,LEN($K11)-2)),"Заполните все столбцы") -> Заполните все столбцы | F11: =IFERROR(VLOOKUP($I11,'1.1Назв. объ. эл. сетевого хоз.'!$H$2:$J$33,2,0)&" номинальным током "&VLOOKUP($J11,'1.1Назв. объ. эл. сетевого хоз.'!$H$2:$J$33,2,0),"Заполните все столбцы") -> Заполните все столбцы | G11: Название объекта | Q11: =IF(AND(P11<>0,N11<>0),P11/N11,0) -> 0.00
B12: TAG | G12: Добавить строки
B13: TAG | G13: Добавить строки

Sheet Ставка 4.4.-4.6.
C2: Расходы на строительство введенных в эксплуатацию объектов электросетевого хозяйства для целей технологического присоединения и для целей реализации иных мероприятий инвестиционной программы территориальной сетевой организации
C6: ДЛЯ НАСЕЛЕННЫХ ПУНКТОВ ВСЕХ ТЕРРИТОРИЙ
C8: N п/п | D8: Технический код ставки | E8: Обозначение ставки | F8: Наименование ставки | G8: Объект электросетевого хозяйства | H8: Территория | I8: Техническое исполнение | J8: Номинальный ток | K8: Количество ячеек | L8: Напряжение | M8: Год ввода объекта | N8: Общая трансформаторная мощность, кВт | O8: Присоединенная максимальная мощность, кВт (указывается только до 670кВт, если больше не указывается) | P8: Расходы на строительство объекта, руб. (без НДС) | Q8: Наименование папки | R8: Источник финансирования
C9: 1 | D9: =C$9+1 -> 2 | E9: =D$9+1 -> 3 | F9: 4 | G9: 5 | H9: 6 | I9: 7 | J9: 8 | K9: 9 | L9: 10 | M9: 11 | N9: 12 | O9: 13 | P9: 14 | Q9: 15 | R9: 16
C10: 4. | G10: Распределительные пункты (РП), за исключением комплектных распределительных устройств наружной установки (КРН, КРУН), комплектные распределительные устройства наружной установки (КРН, КРУН) , переключательные пункты
B11: X | C11: =ROW($C11)-12 -> -4.1 | D11: =IF(OR($H11="",$I11="",$J11="",$K11="",$L11=""),"Заполните все столбцы",LEFT($H11,2)&"."&"4."&LEFT($I11,1)&"."&LEFT($J11,1)&"."&LEFT($K11,1)) -> Заполните все столбцы | E11: =IFERROR("С "&(MID($D11,4,LEN($D11)))&" "&(RIGHT($H11,LEN($H11)-3))&","&(RIGHT($L11,LEN($L11)-2)),"Заполните все столбцы") -> Заполните все столбцы | F11: =IFERROR(VLOOKUP($I11,'1.1Назв. объ. эл. сетевого хоз.'!$H$2:$J$33,2,0)&" номинальным током "&VLOOKUP($J11,'1.1Назв. объ. эл. сетевого хоз.'!$H$2:$J$33,2,0)&" с количеством ячеек "&VLOOKUP($K11,'1.1Назв. объ. эл. сетевого хоз.'!$H$2:$J$33,2,0),"Заполните все столбцы") -> Заполните все столбцы | G11: Название объекта
B12: TAG | G12: Добавить строки
B13: TAG | G13: Добавить строки

Sheet Ставка 5. (ТП без РТП)
C2: Расходы на строительство введенных в эксплуатацию объектов электросетевого хозяйства для целей технологического присоединения и для целей реализации иных мероприятий инвестиционной программы территориальной сетевой организации
C6: ДЛЯ НАСЕЛЕННЫХ ПУНКТОВ ВСЕХ ТЕРРИТОРИЙ
C8: N п/п | D8: Технический код ставки | E8: Обозначение ставки | F8: Наименование ставки | G8: Объект электросетевого хозяйства | H8: Территория | I8: Количество трансформаторов | J8: Мощность трансформаторов | K8: Тип исполнения | L8: Напряжение | M8: Год ввода объекта | N8: Общая трансформаторная мощность, кВт | O8: Присоединенная максимальная мощность, кВт (указывается только до 670кВт, если больше не указывается) | P8: Расходы на строительство объекта, руб. (без НДС) | Q8: Наименование папки | R8: Источник финансирования
C9: 1 | D9: =C$9+1 -> 2 | E9: =D$9+1 -> 3 | F9: 4 | G9: 5 | H9: 6 | I9: 7 | J9: 8 | K9: 9 | L9: 10 | M9: 11 | N9: 12 | O9: 13 | P9: 14 | Q9: 15 | R9: 16
C10: 5. | G10: Трансформаторные подстанции (ТП), за исключением распределительных трансформаторных подстанций (РТП), с уровнем напряжения до 35 кВ
B11: X | C11: =ROW($C11)-12 -> -5.1 | D11: =IF(OR($H11="",$I11="",$J11="",$K11="",$L11=""),"Заполните все столбцы",LEFT($H11,2)&"."&"5."&LEFT($I11,1)&"."&LEFT($J11,2)&"."&LEFT($K11,1)) -> Заполните все столбцы | E11: =IFERROR("С "&(MID($D11,4,LEN($D11)))&" "&(RIGHT($H11,LEN($H11)-3))&","&(RIGHT($L11,LEN($L11)-2)),"Заполните все столбцы") -> Заполните все столбцы | F11: =IFERROR(VLOOKUP($I11,'1.1Назв. объ. эл. сетевого хоз.'!$K$2:$L$33,2,0)&" "&VLOOKUP($J11,'1.1Назв. объ. эл. сетевого хоз.'!$K$2:$L$24,2,0)&" "&VLOOKUP($K11,'1.1Назв. объ. эл. сетевого хоз.'!$K$2:$L$24,2,0),"Заполните все столбцы") -> Заполните все столбцы | G11: Название объекта
B12: TAG | G12: Добавить строки
B13: TAG | G13: Добавить строки

Sheet Ставка 6. (РТП)
C2: Расходы на строительство введенных в эксплуатацию объектов электросетевого хозяйства для целей технологического присоединения и для целей реализации иных мероприятий инвестиционной программы территориальной сетевой организации
C6: ДЛЯ НАСЕЛЕННЫХ ПУНКТОВ ВСЕХ ТЕРРИТОРИЙ
C8: N п/п | D8: Технический код ставки | E8: Обозначение ставки | F8: Наименование ставки | G8: Объект электросетевого хозяйства | H8: Территория | I8: Количество трансформаторов | J8: Мощность трансформаторов | K8: Напряжение | L8: Год ввода объекта | M8: Общая трансформаторная мощность, кВт | N8: Присоединенная максимальная мощность, кВт (указывается только до 670кВт, если больше не указывается) | O8: Расходы на строительство объекта, руб. (без НДС) | P8: Наименование папки | Q8: Источник финансирования
C9: 1 | D9: =C$9+1 -> 2 | E9: =D$9+1 -> 3 | F9: 4 | G9: 5 | H9: 6 | I9: 7 | J9: 8 | K9: 9 | L9: 10 | M9: 11 | N9: 12 | O9: 13 | P9: 14 | Q9: 15
C10: 6. | G10: Распределительные трансформаторные подстанции (РТП) с уровнем напряжения до 35 кВ
B11: X | C11: =ROW($C11)-12 -> -6.1 | D11: =IF(OR($H11="",$I11="",$J11="",$K11=""),"Заполните все столбцы",LEFT($H11,2)&"."&"6."&LEFT($I11,1)&"."&LEFT($J11,2)) -> Заполните все столбцы | E11: =IFERROR("С "&(MID($D11,4,LEN($D11)))&" "&(RIGHT($H11,LEN($H11)-3))&","&(RIGHT($K11,LEN($K11)-2)),"Заполните все столбцы") -> Заполните все столбцы | F11: =IFERROR(VLOOKUP($I11,'1.1Назв. объ. эл. сетевого хоз.'!$N$2:$O$33,2,0)&" мощностью"&VLOOKUP($J11,'1.1Назв. объ. эл. сетевого хоз.'!$N$2:$O$24,2,0),"Заполните все столбцы") -> Заполните все столбцы | G11: Название объекта
B12: TAG | G12: Добавить строки
B13: TAG | G13: Добавить строки

Sheet Ставка 7. (ТП>35)
C2: Расходы на строительство введенных в эксплуатацию объектов электросетевого хозяйства для целей технологического присоединения и для целей реализации иных мероприятий инвестиционной программы территориальной сетевой организации
C6: ДЛЯ НАСЕЛЕННЫХ ПУНКТОВ ВСЕХ ТЕРРИТОРИЙ
C8: N п/п | D8: Технический код ставки | E8: Обозначение ставки | F8: Наименование ставки | G8: Объект электросетевого хозяйства | H8: Территория | I8: Количество трансформаторов | J8: Мощность трансформаторов | K8: Напряжение | L8: Год ввода объекта | M8: Общая трансформаторная мощность, кВт | N8: Присоединенная максимальная мощность, кВт (указывается только до 670кВт, если больше не указывается) | O8: Расходы на строительство объекта, руб. (без НДС) | P8: Наименование папки | Q8: Источник финансирования
C9: 1 | D9: =C$9+1 -> 2 | E9: =D$9+1 -> 3 | F9: 4 | G9: 5 | H9: 6 | I9: 7 | J9: 8 | K9: 9 | L9: 10 | M9: 11 | N9: 12 | O9: 13 | P9: 14 | Q9: 15
C10: 7. | I10: Подстанции уровнем напряжения 35 кВ и выше
B11: X | C11: =ROW($C11)-12 -> -7.1 | D11: =IF(OR($H11="",$I11="",$J11="",$K11=""),"Заполните все столбцы",LEFT($H11,2)&"."&"7."&LEFT($I11,1)&"."&LEFT($J11,2)) -> Заполните все столбцы | E11: =IFERROR("С "&(MID($D11,4,LEN($D11)))&" "&(RIGHT($H11,LEN($H11)-3))&","&(RIGHT($K11,LEN($K11)-2)),"Заполните все столбцы") -> Заполните все столбцы | F11: =IFERROR(VLOOKUP($I11,'1.1Назв. объ. эл. сетевого хоз.'!$Q$2:$R$33,2,0)&" мощностью "&VLOOKUP($J11,'1.1Назв. объ. эл. сетевого хоз.'!$Q$2:$R$33,2,0),"Заполните все столбцы") -> Заполните все столбцы | G11: Название объекта
B12: TAG | G12: Добавить строки
B13: TAG | G13: Добавить строки

Sheet Ставка 8. (ПУ)
C2: Расходы на строительство введенных в эксплуатацию объектов электросетевого хозяйства для целей технологического присоединения и для целей реализации иных мероприятий инвестиционной программы территориальной сетевой организации
C6: ДЛЯ НАСЕЛЕННЫХ ПУНКТОВ ВСЕХ ТЕРРИТОРИЙ
C8: N п/п | D8: Технический код ставки | E8: Обозначение ставки | F8: Наименование ставки | G8: Объект электросетевого хозяйства | H8: Территория | I8: Количество фаз | J8: Способ подключения | K8: Напряжение | L8: Год ввода объекта | M8: Количество точек учета, шт. | N8: Присоединенная максимальная мощность, кВт (указывается только до 670кВт, если больше не указывается) | O8: Общие расходы на обеспечение средствами коммерческого учета электрической энергии (мощности), руб. (без НДС) | P8: Расходы на обеспечение средствами коммерческого учета электрической энергии (мощности), руб./шт. | Q8: Наименование папки | R8: Источник финансирования
C9: 1 | D9: =C$9+1 -> 2 | E9: =D$9+1 -> 3 | F9: 4 | G9: 5 | H9: 6 | I9: 7 | J9: 8 | K9: 9 | L9: 10 | M9: 11 | N9: 12 | O9: 13 | P9: 14 | Q9: 15 | R9: 16
C10: 8. | G10: Обеспечение средствами коммерческого учета электрической энергии (мощности)
B11: X | C11: =ROW($C11)-12 -> -8.1 | D11: =IF(OR($H11="",$I11="",$J11="",$K11=""),"Заполните все столбцы",LEFT($H11,2)&"."&"8."&LEFT($I11,1)&"."&LEFT($J11,1)) -> Заполните все столбцы | E11: =IFERROR("С "&(MID($D11,4,LEN($D11)))&" "&(RIGHT($H11,LEN($H11)-3))&","&(RIGHT($K11,LEN($K11)-2)),"Заполните все столбцы") -> Заполните все столбцы | F11: =IFERROR("средства коммерческого учета электрической энергии (мощности) "&VLOOKUP($I11,'1.1Назв. объ. эл. сетевого хоз.'!$T$2:$U$33,2,0)&" "&VLOOKUP($J11,'1.1Назв. объ. эл. сетевого хоз.'!$T$2:$U$33,2,0),"Заполните все столбцы") -> Заполните все столбцы | G11: Название объекта и(или) адрес | P11: =IF(AND(O11<>0,M11<>0),O11/M11,0) -> 0.00 | R11: Инвестиционная программа
B12: TAG | G12: Добавить строки
B13: TAG | G13: Добавить строки

Sheet Названия ТСО+Ист. фин. тех.лист (hidden)
A1: Наименование сетевой организации, к которой непосредственно присоединен потребитель | B1: Источник финансирования
A2: Филиал ОАО "РЖД" Трансэнерго Свердловская дирекция по энергообеспечению (по сетям Ишимской, Егоршинской, Серовской, Тюменской дистанций электроснабжения) | B2: Инвестиционная программа
A3: АО "Сибирско-Уральская энергетическая компания" | B3: Технологическое присоединение
A4: Филиал "Уральский" АО "Оборонэнерго"
A5: ООО "ДСК-Энерго"
A6: ООО "РемЭнергоСтройСервис"
A7: ООО "Тобольскпромэнергосеть"
A8: ООО "Транзит-Электро-Тюмень"
A9: ООО "Тюменская электросетевая компания"
A10: ООО "Элтранс"
A11: ООО "Агентство Интеллект-Сервис"
A12: ООО "Альтера"
A13: ООО Сетевая компания "Восток"
A14: ООО "Дорстрой"
A15: ООО "Региональная энергетическая компания"
A16: АО "Россети Тюмень"
A17: ООО "ТюменьСеть"
A18: ООО "Элеконт"
A19: АО "Городские электрические сети" г.Нижневартовск
A20: АО "Варьеганэнергонефть"
A21: ООО "МегионЭнергоНефть"
A22: ООО "Сургутские городские электрические сети"
A23: АО "Югорская территориальная энергетическая компания - Региональные сети"
A24: ООО "ЭЛЕК"
A25: АО "Югорская региональная электросетевая компания"
A26: АО "Аэропорт Сургут"
A27: Филиал ОАО "РЖД" Трансэнерго Свердловская дирекция по энергообеспечению (по сетям Сургутской дистанции электроснабжения)
A28: ООО "Газпром трансгаз Сургут"
A29: ПАО "Сургутнефтегаз"
A30: АО «ННК - Нижневартовское нефтегазодобывающее предприятие» (АО «ННК - ННП»)
A31: МУП "Сургутские районные электрические сети" муниципального образования Сургутский район
A32: АО "Черногорэнерго"
A33: ООО "Луч-Электро"
A34: ООО "РН-Юганскнефтегаз"
A35: ООО "Газпром энерго"
A36: ООО "Энергонефть Томск"
A37: ООО "Газпромнефть-Хантос"
A38: ООО "Ханты-Мансийские городские электрические сети"
A39: АО "Вынгапуровский тепловодоканал"
A40: АО "Уренгойгорэлектросеть"
A41: АО "Ямальская железнодорожная компания"
A42: ООО "Ноябрьскэнергонефть"
A43: АО "Энерго-Газ-Ноябрьск"
A44: АО "НордЭнерджиСистемс"
A45: МУП муниципального округа Надымский район Ямало-Ненецкого автономного округа "Надымские городские электрические сети"
A46: ООО "Газпром энерго" (Уренгойский филиал)
A47: ООО "СеверСетьРазвитие"
A48: АО "Распределительная сетевая компания Ямала"
A49: АО "Губкинские городские электрические сети"

Sheet Teh_Sheet (hidden)
C2: 2. воздушные линии | M2: 3. кабельные линии | U2: 4. пункты секционирования (реклоузеры, распределительные пункты, переключательные пункты) | AA2: 5. трансформаторные подстанции (ТП), за исключением распределительных трансформаторных подстанций (РТП), с уровнем напряжения до 35 кВ | AG2: 6. распределительные трансформаторные подстанции (РТП) с уровнем напряжения до 35 кВ | AL2: 7. подстанции уровнем напряжения 35 кВ и выше | AQ2: 8. обеспечение средствами коммерческого учета электрической энергии (мощности)
A3: Ст | C3: территория | D3: опоры | E3: изоляция | F3: материал | G3: сечение | H3: количество цепей | I3: напряжение | J3: напряжение 2) | K3: напряжение 2.) | M3: территория | N3: способ прокладки | O3: вид жилы | P3: изоляция | Q3: сечение | R3: количество кабелей | S3: напряжение | U3: территория | V3: техническое исполнение | W3: номинальный ток | X3: Количество ячеек | Y3: напряжение | AA3: Территория | AB3: Количество трансформаторов | AC3: Мощность трансформаторов | AD3: Тип исполнения | AE3: Напряжение | AG3: Территория | AH3: Количество трансформаторов | AI3: Мощность трансформаторов | AJ3: Напряжение | AL3: территория | AM3: количество трансформаторов | AN3: Мощность трансформаторов | AO3: Напряжение | AQ3: территория | AR3: Количество фаз | AS3: Способ подключения | AT3: Напряжение
A4: 1) | C4: I ) Город | D4: 1) Деревянные | E4: 1) Изолированый | F4: 1) Медный | G4: 1) до 50 квадратных мм включительно | H4: 1) Одноцепные | I4: 1) 0,4 кВ и ниже | J4: 1) 0,4 кВ и ниже | K4: 3) 27,5 - 60 кВ | M4: I ) Город | N4: 1) траншея | O4: 1) одножильный | P4: 1) резиновая или пластмассовая | Q4: 1) до 50 квадратных мм включительно | R4: 1) один | S4: 1) 0,4 кВ и ниже | U4: I ) Город | V4: 1) реклоузер | W4: 1) до 100 А | X4: 1) до 5 включительно | Y4: 1) 0,4 кВ и ниже | AA4: I ) Город | AB4: 1) один | AC4: 1.) до 25 кВА включительно | AD4: 1) столбового/мачтового | AE4: 1) 6/0,4 кВ | AG4: I ) Город | AH4: 1) один | AI4: 1.) до 25 кВА включительно | AJ4: 1) 6(10)/0,4 кВ | AL4: I ) Город | AM4: 1) один | AN4: 1.) до 6,3 МВА включительно | AO4: 1) 35/6(10) кВ | AQ4: I ) Город | AR4: 1) однофазные | AS4: 1) прямого включения | AT4: 1) 0,4 кВ и ниже
A5: 2) | C5: II) Не город | D5: 2) Металлические | E5: 2) Неизолированный | F5: 2) Стальной | G5: 2) от 50 до 100 квадратных мм включительно | H5: 2) Двухцепные | I5: 2) 1 - 20 кВ | J5: 2) 1 - 20 кВ | K5: 4) 110 кВ и выше | M5: II) Не город | N5: 2) блоки | O5: 2) многожильный | P5: 2) бумажная | Q5: 2) от 50 до 100 квадратных мм включительно | R5: 2) два | S5: 2) 1 - 10 кВ | U5: II) Не город | V5: 2) линейные разъединители | W5: 2) от 100 до 250 А включительно | X5: 2) от 5 до 10 включительно | Y5: 2) 1 - 20 кВ | AA5: II) Не город | AB5: 2) два | AC5: 2.) от 25 до 100 кВА включительно | AD5: 2) шкафного или киоскового | AE5: 2) 10/0,4 кВ | AG5: II) Не город | AH5: 1) два | AI5: 2.) от 25 до 100 кВА включительно | AJ5: 2) 20/0,4 кВ | AL5: II) Не город | AM5: 2) два | AN5: 2.) от 6,3 МВА до 10 МВА включительно | AO5: 2) 35/0,4 кВ | AQ5: II) Не город | AR5: 2) трехфазные | AS5: 2) полукосвенного включения | AT5: 2) 1 - 20 кВ
A6: 3) | D6: 2.1) Металлические, за исключением многогранных | F6: 3) Сталеалюминиевый | G6: 3) от 100 до 200 квадратных мм включительно | I6: 3) 27,5 - 60 кВ | N6: 3) каналы | Q6: 3) от 100 до 200 квадратных мм включительно | R6: 3) три | S6: 3) 15 - 20 кВ | V6: 3) выключатели нагрузки | W6: 3) от 250 до 500 А включительно | X6: 3) от 10 до 15 включительно | Y6: 3) 35 кВ | AC6: 3.) от 100 до 250 кВА включительно | AD6: 3) блочного | AE6: 3) 20/0,4 кВ | AI6: 3.) от 100 до 250 кВА включительно | AN6: 3.) от 10 МВА до 16 МВА включительно | AO6: 3) 110/35 кВ | AS6: 3) косвенного включения | AT6: 3) 35 кВ
A7: 4) | D7: 2.2) Металлические многогранные | F7: 4) Алюминиевый | G7: 4) от 200 до 500 квадратных мм включительно | I7: 4) 110 кВ и выше | N7: 4) туннели и коллекторы | Q7: 4) от 200 до 250 квадратных мм включительно | R7: 4) четыре | S7: 4) 27,5 - 60 кВ | V7: 4) распределительные пункты, за исключением КРН, КРУН | W7: 4) от 500 до 1000 А включительно | X7: 4) свыше 15 | Y7: 4) 110 кВ и выше | AC7: 4.) от 250 до 400 кВА включительно | AE7: 4) 6/10 (10/6) кВ | AI7: 4.) от 250 до 400 кВА включительно | AN7: 4.) от 16 МВА до 25 МВА включительно | AO7: 4) 110/6(10) кВ | AT7: 4) 110 кВ и выше
A8: 5) | D8: 3) Железобетонные | G8: 5) от 500 до 800 квадратных мм включительно | N8: 5) галереи и эстакады | Q8: 5) от 250 до 300 квадратных мм включительно | R8: 5) более четырех | S8: 5) 110 кВ и выше | V8: 5) КРН, КРУН | W8: 5) свыше 1000 А | AC8: 5.) от 400 до 1000 кВА включительно | AE8: 5) 10/20 (20/10) кВ | AI8: 5.) от 400 до 1000 кВА включительно | AN8: 5.) от 25 МВА до 32 МВА включительно | AO8: 5) 110/35/6(10) кВ
A9: 6) | G9: 6) свыше 800 квадратных мм | N9: 6) метод горизонтального наклонного бурения | Q9: 6) от 300 до 400 квадратных мм включительно | V9: 6) переключательные пункты | AC9: 6.) от 1000 кВА до 1250 кВА | AE9: 6) 6/20 (20/6) кВ | AI9: 6.) от 1000 кВА до 1250 кВА | AN9: 6.) от 32 МВА до 40 МВА включительно
A10: 7) | Q10: 7) от 400 до 500 квадратных мм включительно | AC10: 7.) от 1250 кВА до 1600 кВА включительно | AI10: 7.) от 1250 кВА до 1600 кВА включительно | AN10: 7.) от 40 МВА до 63 МВА включительно
A11: 8) | Q11: 8) от 500 до 800 квадратных мм включительно | AC11: 8.) от 1600 кВА до 2000 кВА включительно | AI11: 8.) от 1600 кВА до 2000 кВА включительно | AN11: 8.) от 63 МВА до 80 МВА включительно
A12: 9) | Q12: 9) свыше 800 квадратных мм | AC12: 9.) от 2000 кВА до 2500 кВА включительно | AI12: 9.) от 2000 кВА до 2500 кВА включительно | AN12: 9.) от 80 МВА до 100 МВА включительно
A13: 10) | AC13: 10) от 2500 кВА до 3150 кВА включительно | AI13: 10) от 2500 кВА до 3150 кВА включительно | AN13: 10) свыше 100 МВА
A14: 11) | AC14: 11) от 3150 кВА до 4000 кВА включительно | AI14: 11) свыше 3150 кВА
A15: 12) | AC15: 12) свыше 4000 кВА

Sheet 1.1Назв. объ. эл. сетевого хоз. (hidden)
A1: 2. ВЛ | D1: 3. КЛ | H1: 4. Реклоузеры, линейные разъединители, выключатели нагрузки + распределительные пункты (РП), за исключением комплектных распределительных устройств наружной установки (КРН, КРУН), комплектные распределительные устройства наружной установки (КРН, КРУН) , переключательные пункты | K1: 5. трансформаторные подстанции (ТП), за исключением распределительных трансформаторных подстанций (РТП), с уровнем напряжения до 35 кВ | N1: 6. распределительные трансформаторные подстанции (РТП) с уровнем напряжения до 35 кВ | Q1: 7. подстанции уровнем напряжения 35 кВ и выше | T1: 8. обеспечение средствами коммерческого учета электрической энергии (мощности)
A2: 1) Деревянные | B2: деревянных опорах | D2: 1) траншея | E2: в траншеях | F2: в траншее | H2: 1) реклоузер | I2: реклоузеры | K2: 1) один | L2: однотрансформаторные подстанции (за исключением РТП) | N2: 1) один | O2: распределительные однотрансформаторные подстанции | Q2: 1.) до 6,3 МВА включительно | R2: до 6,3 МВА включительно | T2: 1) однофазные | U2: однофазные
A3: 2) Металлические | B3: металлических опорах | D3: 2) блоки | E3: в блоках | F3: в блоке | H3: 2) линейные разъединители | I3: линейные разъединители | K3: 2) два | L3: двухтрансформаторные и более подстанции (за исключением РТП) | N3: 2) два | O3: распределительные двухтрансформаторные подстанции | Q3: 2.) от 6,3 МВА до 10 МВА включительно | R3: от 6,3 МВА до 10 МВА включительно | T3: 2) трехфазные | U3: трехфазные
A4: 2.1) Металлические, за исключением многогранных | B4: металлических опорах, за исключением многогранных | D4: 3) каналы | E4: в каналах | F4: в канале | H4: 3) выключатели нагрузки | I4: выключатели нагрузки, устанавливаемые вне трансформаторных подстанций и распределительных и переключательных пунктов, | K4: 1.) до 25 кВА включительно | L4: мощностью до 25 кВА включительно | N4: 1.) до 25 кВА включительно | O4: до 25 кВА включительно | Q4: 3.) от 10 МВА до 16 МВА включительно | R4: от 10 МВА до 16 МВА включительно | T4: 1) прямого включения | U4: прямого включения
A5: 2.2) Металлические многогранные | B5: многогранных металлических опорах | D5: 4) туннели и коллекторы | E5: в туннелях и коллекторах | F5: в туннеле или коллекторе | H5: 4) распределительные пункты, за исключением КРН, КРУН | I5: распределительные пункты (РП), за исключением комплектных распределительных устройств наружной установки (КРН, КРУН), | K5: 2.) от 25 до 100 кВА включительно | L5: мощностью от 25 до 100 кВА включительно | N5: 2.) от 25 до 100 кВА включительно | O5: от 25 до 100 кВА включительно | Q5: 4.) от 16 МВА до 25 МВА включительно | R5: от 16 МВА до 25 МВА включительно | T5: 2) полукосвенного включения | U5: полукосвенного включения
A6: 3) Железобетонные | B6: железобетонных опорах | D6: 5) галереи и эстакады | E6: в галереях и эстакадах | F6: в галерее или на эстакаде | H6: 5) КРН, КРУН | I6: комплектные распределительные устройства наружной установки (КРН, КРУН), | K6: 3.) от 100 до 250 кВА включительно | L6: мощностью от 100 до 250 кВА включительно | N6: 3.) от 100 до 250 кВА включительно | O6: от 100 до 250 кВА включительно | Q6: 5.) от 25 МВА до 32 МВА включительно | R6: от 25 МВА до 32 МВА включительно | T6: 3) косвенного включения | U6: косвенного включения
A7: 1) Изолированый | B7: изолированым | D7: 6) метод горизонтального наклонного бурения | E7: , прокладываемые методом горизонтального наклонного бурения | H7: 6) переключательные пункты | I7: переключательные пункты | K7: 4.) от 250 до 400 кВА включительно | L7: мощностью от 250 до 400 кВА включительно | N7: 4.) от 250 до 400 кВА включительно | O7: от 250 до 400 кВА включительно | Q7: 6.) от 32 МВА до 40 МВА включительно | R7: от 32 МВА до 40 МВА включительно
A8: 2) Неизолированный | B8: неизолированным | D8: 1) одножильный | E8: одножильные | H8: 1) до 100 А | I8: до 100 А включительно | K8: 5.) от 400 до 1000 кВА включительно | L8: мощностью от 400 до 1000 кВА включительно | N8: 5.) от 400 до 1000 кВА включительно | O8: от 400 до 1000 кВА включительно | Q8: 7.) от 40 МВА до 63 МВА включительно | R8: от 40 МВА до 63 МВА включительно
A9: 1) Медный | B9: медным | D9: 2) многожильный | E9: многожильные | H9: 2) от 100 до 250 А включительно | I9: от 100 до 250 А включительно | K9: 6.) от 1000 кВА до 1250 кВА | L9: мощностью от 1000 кВА до 1250 кВА | N9: 6.) от 1000 кВА до 1250 кВА | O9: от 1000 кВА до 1250 кВА | Q9: 8.) от 63 МВА до 80 МВА включительно | R9: от 63 МВА до 80 МВА включительно
A10: 2) Стальной | B10: стальным | D10: 1) резиновая или пластмассовая | E10: резиновой или пластмассовой | H10: 3) от 250 до 500 А включительно | I10: от 250 до 500 А включительно | K10: 7.) от 1250 кВА до 1600 кВА включительно | L10: мощностью от 1250 кВА до 1600 кВА включительно | N10: 7.) от 1250 кВА до 1600 кВА включительно | O10: от 1250 кВА до 1600 кВА включительно | Q10: 9.) от 80 МВА до 100 МВА включительно | R10: от 80 МВА до 100 МВА включительно
A11: 3) Сталеалюминиевый | B11: сталеалюминиевым | D11: 2) бумажная | E11: бумажной | H11: 4) от 500 до 1000 А включительно | I11: от 500 до 1000 А включительно | K11: 8.) от 1600 кВА до 2000 кВА включительно | L11: мощностью от 1600 кВА до 2000 кВА включительно | N11: 8.) от 1600 кВА до 2000 кВА включительно | O11: от 1600 кВА до 2000 кВА включительно | Q11: 10) свыше 100 МВА | R11: свыше 100 МВА
A12: 4) Алюминиевый | B12: алюминиевым | D12: 1) до 50 квадратных мм включительно | E12: до 50 квадратных мм включительно | H12: 5) свыше 1000 А | I12: свыше 1000 А | K12: 9.) от 2000 кВА до 2500 кВА включительно | L12: мощностью от 2000 кВА до 2500 кВА включительно | N12: 9.) от 2000 кВА до 2500 кВА включительно | O12: от 2000 кВА до 2500 кВА включительно | Q12: 1) 35/6(10) кВ | R12: 35/6(10) кВ
A13: 1) до 50 квадратных мм включительно | B13: до 50 квадратных мм включительно | D13: 2) от 50 до 100 квадратных мм включительно | E13: от 50 до 100 квадратных мм включительно | H13: 1) до 5 включительно | I13: до 5 включительно | K13: 10) от 2500 кВА до 3150 кВА включительно | L13: мощностью от 2500 кВА до 3150 кВА включительно | N13: 10) от 2500 кВА до 3150 кВА включительно | O13: от 2500 кВА до 3150 кВА включительно | Q13: 2) 35/0,4 кВ | R13: 35/0,4 кВ
A14: 2) от 50 до 100 квадратных мм включительно | B14: от 50 до 100 квадратных мм включительно | D14: 3) от 100 до 200 квадратных мм включительно | E14: от 100 до 200 квадратных мм включительно | H14: 2) от 5 до 10 включительно | I14: от 5 до 10 включительно | K14: 11) от 3150 кВА до 4000 кВА включительно | L14: мощностью от 3150 кВА до 4000 кВА включительно | N14: 11) свыше 3150 кВА | O14: свыше 3150 кВА | Q14: 3) 110/35 кВ | R14: 110/35 кВ
A15: 3) от 100 до 200 квадратных мм включительно | B15: от 100 до 200 квадратных мм включительно | D15: 4) от 200 до 250 квадратных мм включительно | E15: от 200 до 250 квадратных мм включительно | H15: 3) от 10 до 15 включительно | I15: от 10 до 15 включительно | K15: 12) свыше 4000 кВА | L15: мощностью свыше 4000 кВА | N15: 1) 6(10)/0,4 кВ | O15: 6(10)/0,4 кВ | Q15: 4) 110/6(10) кВ | R15: 110/6(10) кВ
A16: 4) от 200 до 500 квадратных мм включительно | B16: от 200 до 500 квадратных мм включительно | D16: 5) от 250 до 300 квадратных мм включительно | E16: от 250 до 300 квадратных мм включительно | H16: 4) свыше 15 | I16: свыше 15 | K16: 1) столбового/мачтового | L16: столбового/мачтового типа | N16: 2) 20/0,4 кВ | O16: 20/0,4 кВ | Q16: 5) 110/35/6(10) кВ | R16: 110/35/6(10) кВ
A17: 5) от 500 до 800 квадратных мм включительно | B17: от 500 до 800 квадратных мм включительно | D17: 6) от 300 до 400 квадратных мм включительно | E17: от 300 до 400 квадратных мм включительно | H17: 1) 0,4 кВ и ниже | I17: 0,4 кВ и ниже | K17: 2) шкафного или киоскового | L17: шкафного или киоскового типа | Q17: 1) один | R17: однотрансформаторные подстанции
A18: 6) свыше 800 квадратных мм | B18: свыше 800 квадратных мм | D18: 7) от 400 до 500 квадратных мм включительно | E18: от 400 до 500 квадратных мм включительно | H18: 2) 1 - 20 кВ | I18: 1 - 20 кВ | K18: 3) блочного | L18: блочного типа | Q18: 2) два | R18: двухтрансформаторные подстанции
A19: 1) Одноцепные | B19: одноцепные | D19: 8) от 500 до 800 квадратных мм включительно | E19: от 500 до 800 квадратных мм включительно | H19: 3) 35 кВ | I19: 35 кВ | K19: 1) 6/0,4 кВ | L19: 6/0,4 кВ
A20: 2) Двухцепные | B20: двухцепные | D20: 9) свыше 800 квадратных мм | E20: свыше 800 квадратных мм | H20: 4) 110 кВ и выше | I20: 110 кВ и выше | K20: 2) 10/0,4 кВ | L20: 10/0,4 кВ
A21: 1) 0,4 кВ и ниже | B21: 0.4 | D21: 1) один | E21: с одним кабелем | F21: с одной трубой в скважине | K21: 3) 20/0,4 кВ | L21: 20/0,4 кВ
A22: 2) 1 - 20 кВ | B22: 1 - 20 | D22: 2) два | E22: с двумя кабелями | F22: с двумя трубами в скважине | K22: 4) 6/10 (10/6) кВ | L22: 6/10 (10/6) кВ
A23: 3) 27,5 - 60 кВ | B23: 27,5 - 60 | D23: 3) три | E23: с тремя кабелями | F23: с тремя трубами в скважине | K23: 5) 10/20 (20/10) кВ | L23: 10/20 (20/10) кВ
A24: 4) 110 кВ и выше | B24: 110 | D24: 4) четыре | E24: с четырьмя кабелями | F24: с четырьмя трубами в скважине | K24: 6) 6/20 (20/6) кВ | L24: 6/20 (20/6) кВ
D25: 5) более четырех | E25: кабелей более четырех | F25: труб более четырех
D26: 1) 0,4 кВ и ниже | E26: 0,4 кВ и ниже
D27: 2) 1 - 10 кВ | E27: 1 - 10 кВ
D28: 3) 15 - 20 кВ | E28: 15 - 20 кВ
D29: 4) 27,5 - 60 кВ | E29: 27,5 - 60 кВ
D30: 5) 110 кВ и выше | E30: 110 кВ и выше

Sheet Приложение
B1: ="Расчет фактических расходов на выполнение мероприятий по технологическому присоединению, предусмотренных подпунктами 'а' и 'в' пункта 16 Методических указаний, за " & Титульный!D10-4 & "-" & Титульный!D10-2 & " гг."& "(выполняется отдельно по мероприятиям, предусмотренным подпунктами 'а' и 'в' пункта 16 Методических указаний)" -> Расчет фактических расходов на выполнение мероприятий по технологическому присоединению, предусмотренных подпунктами 'а' и 'в' пункта 16 Методических указаний, за 2018-2020 гг.(выполняется отдельно по мероприятиям, предусмотренным подпунктами 'а' и 'в' пункта 16 Методических указаний)
F5: руб.
B6: N п/п | C6: Показатели | D6: ="Данные за предыдущий период регулирования (n-2) "& Титульный!D10-2 & " год" -> Данные за предыдущий период регулирования (n-2) 2020 год | E6: ="Данные за год (n-3), предшествующий предыдущему периоду регулирования " & Титульный!D10-3 & " год" -> Данные за год (n-3), предшествующий предыдущему периоду регулирования 2019 год | F6: ="Данные за год (n-4), предшествующий году (n-3) " & Титульный!D10-4 &" год" -> Данные за год (n-4), предшествующий году (n-3) 2018 год
B7: 1 | C7: 2 | D7: 3 | E7: 4 | F7: 5
B8: 1. | C8: Расходы по выполнению мероприятий по технологическому присоединению, всего | D8: =D9+D10+D11+D12+D13 -> 367,760.83 | E8: =E9+E10+E11+E12+E13 -> 70,289.07 | F8: =F9+F10+F11+F12+F13 -> 95,066.87
B9: 1.1. | C9: Вспомогательные материалы | D9: 0.00 | E9: 0.00 | F9: 0.00
B10: 1.2. | C10: Энергия на хозяйственные нужды | D10: 0.00 | E10: 0.00 | F10: 0.00
B11: 1.3. | C11: Оплата труда ППП | D11: =66979.74 -> 66,979.74 | E11: 44,026.42 | F11: 31,953.88
B12: 1.4. | C12: Отчисления на страховые взносы | D12: =13692.45 -> 13,692.45 | E12: 7,753.48 | F12: 4,944.12
B13: 1.5. | C13: Прочие расходы, всего, в том числе: | D13: =D14+D15+D16 -> 287,088.64 | E13: =E14+E15+E16 -> 18,509.17 | F13: =F14+F15+F16 -> 58,168.87
B14: 1.5.1. | C14: - работы и услуги производственного характера | D14: 12,910.00 | E14: 7,707.03 | F14: 58,041.13
B15: 1.5.2. | C15: - налоги и сборы, уменьшающие налогооблагаемую базу на прибыль организаций, всего | D15: 160.78 | E15: 176.14 | F15: 0.00
B16: 1.5.3. | C16: - работы и услуги непроизводственного характера, в том числе: | D16: =D17+D18+D19+D20+D21 -> 274,017.86 | E16: =E17+E18+E19+E20+E21 -> 10,626.00 | F16: =F17+F18+F19+F20+F21 -> 127.74
B17: 1.5.3.1. | C17: услуги связи | D17: 0.00 | E17: 0.00 | F17: 0.00
B18: 1.5.3.2. | C18: расходы на охрану и пожарную безопасность | D18: 0.00 | E18: 0.00 | F18: 0.00
B19: 1.5.3.3. | C19: расходы на информационное обслуживание, иные услуги, связанные с деятельностью по технологическому присоединению | D19: 0.00 | E19: 0.00 | F19: 0.00
B20: 1.5.3.4. | C20: плата за аренду имущества | D20: 0.00 | E20: 0.00 | F20: 0.00
B21: 1.5.3.5. | C21: другие прочие расходы, связанные с производством и реализацией | D21: 274,017.86 | E21: 10,626.00 | F21: 127.74
B22: 1.6. | C22: Внереализационные расходы, всего | D22: =D23+D24+D25+D26 -> 0.00 | E22: =E23+E24+E25+E26 -> 0.00 | F22: =F23+F24+F25+F26 -> 0.00
B23: 1.6.1. | C23: - расходы на услуги банков | D23: 0.00 | E23: 0.00 | F23: 0.00
B24: 1.6.2. | C24: - % за пользование кредитом | D24: 0.00 | E24: 0.00 | F24: 0.00
B25: 1.6.3. | C25: - прочие обоснованные расходы | D25: 0.00 | E25: 0.00 | F25: 0.00
B26: 1.6.4. | C26: - денежные выплаты социального характера (по Коллективному договору) | D26: 0.00 | E26: 0.00 | F26: 0.00
